bitfinex-derivatives/quotes_BTCF0:USTF0_20250903
["timestamp","ask_amount","ask_price","bid_price","bid_amount"]
[1756878889104,1.52200986,110790.0,110780.0,0.15366]
[1756878889293,1.52200986,110790.0,110780.0,0.1785]
[1756878890908,1.88200986,110790.0,110780.0,0.1123]
[1756878891102,2.1459652,110790.0,110780.0,0.1123]
[1756878891404,2.3959652,110790.0,110780.0,0.1123]
[1756878891597,1.95642015,110790.0,110780.0,0.1123]
[1756878896810,1.59642015,110790.0,110780.0,0.1123]
[1756878897409,1.93642015,110790.0,110780.0,0.1123]
[1756878898103,1.93970015,110790.0,110780.0,0.13678]
[1756878899312,1.68970015,110790.0,110780.0,0.13678]
[1756878899512,1.68970015,110790.0,110780.0,0.02448]
[1756878899918,1.67282015,110790.0,110770.0,0.0352]
[1756878900119,0.35232097,110780.0,110770.0,0.08452]
[1756878900414,0.37558144,110780.0,110770.0,0.08432]
[1756878900611,1.21022144,110780.0,110770.0,0.08432]
[1756878900815,1.21022144,110780.0,110760.0,0.08452]
[1756878901113,0.85790047,110780.0,110770.0,0.08432]
[1756878902212,1.21022144,110780.0,110770.0,0.08432]
[1756878902803,1.52122144,110780.0,110770.0,0.04932]
[1756878903014,1.21122144,110780.0,110770.0,0.04932]
[1756878904614,1.21122144,110780.0,110770.0,0.08432]
[1756878905316,1.22029492,110780.0,110770.0,0.08432]
[1756878905614,1.56029492,110780.0,110760.0,0.0002]
[1756878905814,0.70464194,110770.0,110760.0,0.42952]
[1756878906128,0.72558144,110770.0,110760.0,0.08883]
[1756878906710,0.72558144,110770.0,110760.0,0.05383]
[1756878907118,0.72558144,110770.0,110760.0,0.05483]
[1756878907316,0.72558144,110770.0,110760.0,0.05583]
[1756878909124,0.72558144,110770.0,110760.0,0.05483]
[1756878909420,0.72558144,110770.0,110760.0,0.00651]
[1756878909633,0.72558144,110770.0,110760.0,0.03084]
[1756878909808,0.37326047,110770.0,110760.0,0.05568]
[1756878910012,0.37326047,110770.0,110760.0,0.00651]
[1756878910207,0.72558144,110770.0,110760.0,0.03084]
[1756878910621,0.72558144,110770.0,110760.0,0.05568]
[1756878913319,0.72558144,110770.0,110760.0,0.09201]
[1756878914828,1.22274144,110770.0,110760.0,0.09201]
[1756878915021,1.53274144,110770.0,110760.0,0.09201]
[1756878916428,1.18042047,110770.0,110760.0,0.09201]
[1756878916726,1.53274144,110770.0,110760.0,0.09201]
[1756878918832,0.33326047,110770.0,110760.0,0.09201]
[1756878919035,1.56166144,110770.0,110760.0,0.09201]
[1756878919331,1.20934047,110770.0,110760.0,0.09201]
[1756878919532,1.22166144,110770.0,110760.0,0.09201]
[1756878919727,1.54166144,110770.0,110760.0,0.09201]
[1756878920327,0.34326047,110770.0,110760.0,0.09201]
[1756878920531,1.22182144,110770.0,110760.0,0.09201]
[1756878921029,1.60182144,110770.0,110760.0,0.09201]
[1756878922326,1.60182144,110770.0,110760.0,0.05563]
[1756878922529,1.60182144,110770.0,110760.0,0.09196]
[1756878924032,1.60182144,110770.0,110760.0,0.05563]
[1756878925136,1.57856097,110770.0,110760.0,0.05563]
[1756878925331,1.60196129,110770.0,110760.0,0.05563]
[1756878928344,1.24964032,110770.0,110760.0,0.05563]
[1756878928539,1.60196129,110770.0,110760.0,0.05563]
[1756878929142,0.75572129,110770.0,110760.0,0.05563]
[1756878929347,1.40364129,110770.0,110760.0,0.05563]
[1756878929550,1.59364129,110770.0,110760.0,0.05563]
[1756878929945,1.59364129,110770.0,110760.0,0.00651]
[1756878930344,1.59364129,110770.0,110760.0,0.03084]
[1756878930540,1.59364129,110770.0,110760.0,0.05563]
[1756878930940,1.59364129,110770.0,110760.0,0.09196]
[1756878931141,1.59364129,110770.0,110760.0,0.05563]
[1756878931743,1.59364129,110770.0,110760.0,0.00651]
[1756878934641,1.59364129,110770.0,110760.0,0.03084]
[1756878936549,1.22148129,110770.0,110760.0,0.09196]
[1756878936749,1.57148129,110770.0,110760.0,0.09196]
[1756878937658,1.57148129,110770.0,110760.0,0.42196]
[1756878938351,0.72572129,110770.0,110760.0,0.42196]
[1756878938553,1.57132129,110770.0,110760.0,0.42196]
[1756878943451,0.72572129,110770.0,110760.0,0.42196]
[1756878943650,1.55000129,110770.0,110760.0,0.38563]
[1756878943851,1.55000129,110770.0,110760.0,0.42274]
[1756878944450,1.55000129,110770.0,110760.0,0.38563]
[1756878945756,1.55000129,110770.0,110760.0,0.42274]
[1756878947258,1.55000129,110770.0,110760.0,0.33651]
[1756878947459,1.55000129,110770.0,110760.0,0.3612]
[1756878947755,1.55000129,110770.0,110760.0,0.33651]
[1756878947952,1.55000129,110770.0,110760.0,0.3612]
[1756878949158,1.55000129,110770.0,110760.0,0.3851]
[1756878952662,1.55000129,110770.0,110760.0,0.42221]
[1756878953460,1.72622124,110770.0,110760.0,0.3851]
[1756878955363,1.72622124,110770.0,110760.0,0.33651]
[1756878957854,1.97622124,110770.0,110760.0,0.00651]
[1756878959366,1.72622124,110770.0,110760.0,0.00651]
[1756878959566,1.9904917,110770.0,110760.0,0.00651]
[1756878959864,0.88194124,110770.0,110760.0,0.00651]
[1756878960065,1.72538124,110770.0,110760.0,0.00651]
[1756878961167,1.70198092,110770.0,110760.0,0.00651]
[1756878961361,1.72542569,110770.0,110760.0,0.00651]
[1756878962468,0.88198569,110770.0,110760.0,0.00651]
[1756878962660,0.93198569,110770.0,110760.0,0.00651]
[1756878962860,1.73422569,110770.0,110760.0,0.0312]
[1756878963561,1.73422569,110770.0,110760.0,0.00651]
[1756878965161,1.73422569,110770.0,110760.0,0.0312]
[1756878966463,1.73422569,110770.0,110760.0,0.00651]
[1756878967868,1.39346569,110770.0,110760.0,0.0312]
[1756878968061,1.54310569,110770.0,110760.0,0.09221]
[1756878968268,1.74310569,110770.0,110760.0,0.09221]
[1756878968970,0.90198569,110770.0,110760.0,0.09221]
[1756878969172,1.77282569,110770.0,110760.0,0.09221]
[1756878969370,1.70282569,110770.0,110760.0,0.00651]
[1756878974675,1.96709615,110770.0,110760.0,0.00651]
[1756878976581,1.70382569,110770.0,110760.0,0.00451]
[1756878978783,1.70382569,110770.0,110760.0,0.02944]
[1756878979482,1.70382569,110770.0,110760.0,0.00451]
[1756878982179,1.96809615,110770.0,110760.0,0.00451]
[1756878982776,1.70382569,110770.0,110760.0,0.00451]
[1756878985688,1.96809615,110770.0,110760.0,0.00451]
[1756878985887,1.70382569,110770.0,110760.0,0.00451]
[1756878987280,1.96809615,110770.0,110760.0,0.00451]
[1756878988883,0.04506,110750.0,110740.0,0.03585]
[1756878989087,0.04506,110750.0,110740.0,0.03]
[1756878989088,2.04796615,110750.0,110740.0,0.03]
[1756878989383,1.45792615,110750.0,110720.0,0.03585]
[1756878989589,0.58768092,110730.0,110720.0,0.46353]
[1756878989794,0.96768092,110730.0,110720.0,0.46353]
[1756878990083,0.96668092,110730.0,110720.0,0.46353]
[1756878990290,0.96568092,110730.0,110720.0,0.46353]
[1756878990882,0.96568092,110730.0,110720.0,0.46553]
[1756878991083,0.43914,110730.0,110720.0,0.46553]
[1756878991279,0.96768092,110730.0,110720.0,0.46553]
[1756878991479,0.99111235,110730.0,110720.0,0.382]
[1756878991684,0.99111235,110730.0,110720.0,0.42968]
[1756878991882,0.99111235,110730.0,110720.0,0.46553]
[1756878992486,1.0644871,110730.0,110720.0,0.46553]
[1756878992791,1.07348031,110730.0,110720.0,0.46553]
[1756878993090,1.91808031,110730.0,110720.0,0.46553]
[1756878994491,1.89464888,110730.0,110720.0,0.46553]
[1756878994892,1.05004888,110730.0,110720.0,0.46553]
[1756878995392,1.89476888,110730.0,110720.0,0.46553]
[1756878995986,1.89472888,110730.0,110720.0,0.46553]
[1756878996294,1.89460888,110730.0,110720.0,0.27553]
[1756878996997,1.89452888,110730.0,110720.0,0.27553]
[1756878997293,1.05004888,110730.0,110720.0,0.27553]
[1756878997493,1.50521567,110730.0,110720.0,0.52553]
[1756878997686,1.20429521,110730.0,110720.0,0.52553]
[1756878997885,1.79856567,110730.0,110720.0,0.52553]
[1756878998086,1.83517567,110730.0,110720.0,0.52553]
[1756878998488,1.82109567,110730.0,110720.0,0.52553]
[1756878998897,1.83517567,110730.0,110720.0,0.52553]
[1756878999995,0.99105567,110730.0,110720.0,0.52553]
[1756879000198,1.83493567,110730.0,110720.0,0.52553]
[1756879001100,1.83493567,110730.0,110720.0,0.33553]
[1756879005503,0.99105567,110730.0,110720.0,0.33553]
[1756879005693,1.81365567,110730.0,110720.0,0.33553]
[1756879009602,0.97105567,110730.0,110720.0,0.33553]
[1756879009803,0.39678521,110730.0,110720.0,0.08553]
[1756879010004,0.39678521,110730.0,110720.0,0.10553]
[1756879011413,0.66105567,110730.0,110720.0,0.10553]
[1756879012810,0.39678521,110730.0,110720.0,0.10553]
[1756879014415,0.39678521,110730.0,110720.0,0.09443484]
[1756879014714,0.13251475,110730.0,110720.0,0.09443484]
[1756879015016,0.39678521,110730.0,110720.0,0.08553]
[1756879015417,0.50850454,110730.0,110720.0,0.08553]
[1756879017913,0.50850454,110730.0,110720.0,0.09470147]
[1756879018618,0.50850454,110730.0,110720.0,0.15470147]
[1756879020621,0.15596115,110730.0,110720.0,0.15470147]
[1756879020813,0.36672339,110740.0,110730.0,0.03654]
[1756879021018,0.43517171,110740.0,110730.0,0.08396]
[1756879021421,0.41168339,110740.0,110730.0,0.08396]
[1756879022023,0.41268339,110740.0,110730.0,0.08396]
[1756879022816,0.06014,110740.0,110730.0,0.08396]
[1756879023020,0.06014,110740.0,110730.0,0.92328]
[1756879023418,0.06114,110740.0,110730.0,1.26328]
[1756879023618,0.06114,110740.0,110730.0,1.55328]
[1756879024019,0.002,110740.0,110730.0,1.55328]
[1756879024218,0.002,110740.0,110730.0,1.90582339]
[1756879025123,0.002,110740.0,110730.0,1.99612379]
[1756879026732,0.41368339,110740.0,110730.0,0.44191963]
[1756879027025,0.41368339,110740.0,110730.0,0.95303963]
[1756879031427,0.06114,110740.0,110730.0,0.95303963]
[1756879041737,0.02453,110740.0,110730.0,0.95303963]
[1756879041938,0.002,110740.0,110730.0,0.95303963]
[1756879042330,0.04706,110740.0,110730.0,0.10191963]
[1756879042536,0.06114,110740.0,110730.0,0.94887963]
[1756879042737,0.06114,110740.0,110730.0,0.94863963]
[1756879043737,0.41368339,110740.0,110730.0,0.10191963]
[1756879043939,0.41368339,110740.0,110730.0,0.94863963]
[1756879045236,0.66368339,110740.0,110730.0,0.94803963]
[1756879045641,0.66368339,110740.0,110730.0,0.10191963]
[1756879046139,0.66368339,110740.0,110730.0,0.10639963]
[1756879051751,0.67273361,110740.0,110730.0,0.10639963]
[1756879052650,0.32019022,110740.0,110730.0,0.10639963]
[1756879052848,0.67273361,110740.0,110730.0,0.10639963]
[1756879053347,0.66368339,110740.0,110730.0,0.10639963]
[1756879055351,0.68711677,110740.0,110730.0,0.10639963]
[1756879056652,0.33457338,110740.0,110730.0,0.10639963]
[1756879056855,0.68711677,110740.0,110730.0,0.10639963]
[1756879059348,0.66368339,110740.0,110730.0,0.10639963]
[1756879060246,0.68711383,110740.0,110730.0,0.10639963]
[1756879064652,0.68711383,110740.0,110730.0,0.06985963]
[1756879065656,0.68711383,110740.0,110730.0,0.10587963]
[1756879066156,0.68711889,110740.0,110730.0,0.10587963]
[1756879066357,0.66368339,110740.0,110730.0,0.10587963]
[1756879066558,0.6871191,110740.0,110730.0,0.10587963]
[1756879068055,0.31114,110740.0,110730.0,0.10587963]
[1756879068355,0.08457963,110740.0,110730.0,0.45842302]
[1756879068555,0.08457963,110740.0,110730.0,0.10587963]
[1756879069458,0.02453,110740.0,110730.0,0.35587963]
[1756879069657,0.002,110740.0,110730.0,0.35587963]
[1756879070159,0.02453,110740.0,110730.0,0.35587963]
[1756879070458,0.04706,110740.0,110730.0,0.70842302]
[1756879071664,0.04706,110740.0,110730.0,0.35587963]
[1756879072858,0.002,110740.0,110730.0,0.70842302]
[1756879073053,0.04706,110740.0,110730.0,0.70842302]
[1756879073760,0.02453,110740.0,110730.0,0.35587963]
[1756879074149,0.002,110740.0,110730.0,0.35587963]
[1756879074665,0.02453,110740.0,110730.0,0.35587963]
[1756879076051,0.002,110740.0,110730.0,0.35587963]
[1756879077160,0.002,110740.0,110730.0,0.70842302]
[1756879077459,0.2663018,110740.0,110730.0,0.62018143]
[1756879077667,0.2663018,110740.0,110730.0,0.35587963]
[1756879077668,0.3254418,110740.0,110730.0,0.35587963]
[1756879077852,0.3254418,110740.0,110730.0,0.62018143]
[1756879079160,0.06114,110740.0,110730.0,0.37018143]
[1756879079362,0.3254418,110740.0,110730.0,0.37018143]
[1756879080452,0.3254418,110740.0,110730.0,1.21166143]
[1756879082866,0.3254418,110740.0,110730.0,1.22166143]
[1756879083761,0.02453,110740.0,110730.0,1.22166143]
[1756879083962,0.3113618,110740.0,110730.0,0.95735963]
[1756879084163,0.3113618,110740.0,110730.0,1.22166143]
[1756879087971,0.3254418,110740.0,110730.0,1.22166143]
[1756879088667,0.3254418,110740.0,110730.0,1.59166143]
[1756879089368,0.3254418,110740.0,110730.0,1.22166143]
[1756879089568,0.3254418,110740.0,110730.0,1.55166143]
[1756879090867,0.02453,110740.0,110730.0,1.55166143]
[1756879091071,0.2663018,110740.0,110730.0,1.55166143]
[1756879091472,0.2663018,110740.0,110730.0,1.22166143]
[1756879092071,0.002,110740.0,110730.0,1.22166143]
[1756879092272,0.2663018,110740.0,110730.0,1.22166143]
[1756879092572,0.002,110740.0,110730.0,2.12626383]
[1756879092771,0.002,110740.0,110730.0,1.59766023]
[1756879092978,0.002,110740.0,110730.0,1.86196203]
[1756879093673,0.002,110740.0,110730.0,2.12626383]
[1756879094777,0.002,110740.0,110730.0,2.20736807]
[1756879095378,0.001,110740.0,110730.0,2.20836807]
[1756879095776,0.0001,110750.0,110730.0,2.17234807]
[1756879095981,0.3235418,110760.0,110750.0,0.09757]
[1756879096182,0.3234418,110760.0,110750.0,1.2008718]
[1756879096777,0.3093618,110760.0,110750.0,1.53986179]
[1756879097078,0.3093618,110760.0,110750.0,1.54434179]
[1756879097788,0.2868318,110760.0,110750.0,1.54434179]
[1756879099090,0.2908318,110760.0,110750.0,1.54434179]
[1756879099686,0.3274418,110760.0,110750.0,0.43205]
[1756879099992,0.5917436,110760.0,110750.0,0.73789]
[1756879101093,0.5917436,110760.0,110750.0,0.10205]
[1756879101282,0.5917436,110760.0,110750.0,0.65361]
[1756879103982,0.5917436,110760.0,110750.0,0.94549]
[1756879105282,0.3274418,110760.0,110750.0,0.94549]
[1756879105488,0.3274418,110760.0,110750.0,1.2097918]
[1756879105689,0.06314,110760.0,110750.0,0.94549]
[1756879105886,0.3274418,110760.0,110750.0,1.2097918]
[1756879106094,0.2823818,110760.0,110750.0,1.2097918]
[1756879110098,0.5917436,110760.0,110750.0,0.94549]
[1756879111098,0.5917436,110760.0,110750.0,0.10205]
[1756879111290,0.5917436,110760.0,110750.0,0.79649]
[1756879111291,0.8417436,110760.0,110750.0,0.79649]
[1756879111490,0.86508662,110760.0,110750.0,0.79649]
[1756879112294,0.86508662,110760.0,110750.0,0.10205]
[1756879113691,0.86508662,110760.0,110750.0,0.01939]
[1756879114196,0.86508662,110760.0,110750.0,0.06727]
[1756879119198,0.86508662,110760.0,110750.0,0.04296]
[1756879119900,0.86508662,110760.0,110750.0,0.00448]
[1756879121004,0.86508662,110760.0,110750.0,0.02699]
[1756879123193,0.86508662,110760.0,110750.0,0.09884]
[1756879123706,0.86508662,110760.0,110750.0,0.06507]
[1756879124795,0.86508662,110760.0,110750.0,0.01825]
[1756879125402,0.86508662,110760.0,110750.0,0.04076]
[1756879129213,1.24508662,110760.0,110750.0,0.0649]
[1756879130698,0.86508662,110760.0,110750.0,0.09867]
[1756879130896,0.86508662,110760.0,110750.0,0.11724602]
[1756879131605,0.61508662,110760.0,110750.0,0.09867]
[1756879135703,0.61508662,110760.0,110750.0,0.02699]
[1756879135906,0.61508662,110760.0,110750.0,0.00448]
[1756879137109,0.87938842,110760.0,110750.0,0.00448]
[1756879137307,1.49938842,110760.0,110750.0,0.00448]
[1756879137510,1.41140368,110760.0,110750.0,0.00448]
[1756879139213,2.00596368,110760.0,110750.0,0.00448]
[1756879145922,1.65350335,110760.0,110750.0,0.00448]
[1756879147219,2.00596368,110760.0,110750.0,0.00448]
[1756879147621,1.98596368,110760.0,110750.0,0.00448]
[1756879148214,1.63596368,110760.0,110750.0,0.00448]
[1756879149625,2.00596368,110760.0,110750.0,0.02699]
[1756879149821,1.63596368,110760.0,110750.0,0.02699]
[1756879151411,1.99596368,110760.0,110750.0,0.02699]
[1756879152221,1.28350335,110760.0,110750.0,0.02699]
[1756879153224,1.59350335,110760.0,110750.0,0.02699]
[1756879153726,1.28350335,110760.0,110750.0,0.02699]
[1756879154627,1.28353911,110760.0,110750.0,0.02699]
[1756879155127,0.93107878,110760.0,110750.0,0.02699]
[1756879155325,1.28353911,110760.0,110750.0,0.02699]
[1756879155522,1.62353911,110760.0,110750.0,0.02699]
[1756879155723,1.28353911,110760.0,110750.0,0.05126]
[1756879155923,1.28353911,110760.0,110750.0,0.06499]
[1756879156425,1.28353911,110760.0,110750.0,0.09888]
[1756879157127,1.28353911,110760.0,110750.0,0.06499]
[1756879157328,1.27925911,110760.0,110750.0,0.09888]
[1756879159530,0.43897911,110760.0,110750.0,0.09888]
[1756879159932,1.27905911,110760.0,110750.0,0.09888]
[1756879160630,0.43897911,110760.0,110750.0,0.09888]
[1756879164428,0.43897911,110760.0,110750.0,0.34888]
[1756879167639,0.08651878,110760.0,110750.0,0.34888]
[1756879167837,0.43897911,110760.0,110750.0,0.34888]
[1756879168335,0.08651878,110760.0,110750.0,0.34888]
[1756879168536,0.43897911,110760.0,110750.0,0.34888]
[1756879174747,0.08651878,110760.0,110750.0,0.34888]
[1756879174944,0.43897911,110760.0,110750.0,0.34888]
[1756879178653,0.08651878,110760.0,110750.0,0.34888]
[1756879178849,0.43897911,110760.0,110750.0,0.34888]
[1756879181555,0.08651878,110760.0,110750.0,0.34888]
[1756879181853,0.43897911,110760.0,110750.0,0.34888]
[1756879186962,0.43897911,110760.0,110750.0,0.04072]
[1756879187459,0.43897911,110760.0,110750.0,0.06384]
[1756879188356,0.43897911,110760.0,110750.0,0.04072]
[1756879189563,0.79143944,110760.0,110750.0,0.04072]
[1756879190467,1.04143944,110760.0,110750.0,0.01821]
[1756879190665,1.04143944,110760.0,110750.0,0.00448]
[1756879190666,0.68897911,110760.0,110750.0,0.00448]
[1756879190865,1.42143944,110760.0,110750.0,0.00448]
[1756879191258,1.06897911,110760.0,110750.0,0.02804]
[1756879191564,1.06897911,110760.0,110750.0,0.06609]
[1756879192365,1.06897911,110760.0,110750.0,0.1032]
[1756879192564,1.06897911,110760.0,110750.0,0.06609]
[1756879196663,1.06897911,110760.0,110750.0,0.1032]
[1756879196867,1.06897911,110760.0,110750.0,0.06609]
[1756879199070,0.68897911,110760.0,110750.0,0.06609]
[1756879199270,0.43897911,110760.0,110750.0,0.06609]
[1756879199472,0.61516634,110760.0,110750.0,0.06609]
[1756879200673,0.35084256,110760.0,110750.0,0.61752378]
[1756879201174,0.04990878,110760.0,110750.0,0.61752378]
[1756879201378,0.07243878,110760.0,110750.0,0.61752378]
[1756879201668,0.61516634,110760.0,110750.0,0.3532]
[1756879202775,0.61516634,110760.0,110750.0,0.1032]
[1756879204778,0.08651878,110760.0,110750.0,0.1032]
[1756879204978,0.61516634,110760.0,110750.0,0.1032]
[1756879209582,0.61516634,110760.0,110750.0,0.00448]
[1756879209774,1.12949012,110760.0,110750.0,0.00448]
[1756879209978,0.61516634,110760.0,110750.0,0.06584]
[1756879210178,1.45428634,110760.0,110750.0,0.1011]
[1756879210378,0.61516634,110760.0,110750.0,0.1011]
[1756879212480,0.35084256,110760.0,110750.0,0.1011]
[1756879213186,0.61516634,110760.0,110750.0,0.1011]
[1756879214187,0.35084256,110760.0,110750.0,0.1011]
[1756879214389,0.35084256,110760.0,110750.0,0.36542378]
[1756879214583,0.004,110760.0,110750.0,0.61542378]
[1756879214788,0.004,110760.0,110750.0,0.95542378]
[1756879215791,0.004,110760.0,110750.0,1.04570778]
[1756879216096,0.004,110760.0,110750.0,1.31003156]
[1756879216684,0.004,110760.0,110750.0,1.04570778]
[1756879216886,0.004,110760.0,110750.0,1.31003156]
[1756879221198,0.004,110760.0,110750.0,1.06408242]
[1756879221689,0.04906,110760.0,110750.0,1.81175842]
[1756879221892,0.06314,110760.0,110750.0,0.72379842]
[1756879222194,0.06314,110760.0,110750.0,0.25947464]
[1756879222195,0.59178756,110760.0,110750.0,0.25947464]
[1756879222392,0.59178756,110760.0,110750.0,1.09743464]
[1756879222994,0.32746378,110760.0,110750.0,1.09743464]
[1756879223792,0.32746378,110760.0,110750.0,1.36175842]
[1756879224596,0.32746378,110760.0,110750.0,1.09743464]
[1756879226097,0.06314,110760.0,110750.0,1.09743464]
[1756879226299,0.32746378,110760.0,110750.0,1.09743464]
[1756879226592,0.59178756,110760.0,110750.0,0.25947464]
[1756879226799,0.59178756,110760.0,110750.0,0.22421464]
[1756879227096,0.59178756,110760.0,110750.0,0.25947464]
[1756879227286,0.59178756,110760.0,110750.0,0.22421464]
[1756879227488,0.59178756,110760.0,110750.0,0.25947464]
[1756879231201,0.06314,110760.0,110750.0,0.25947464]
[1756879231405,0.59178756,110760.0,110750.0,0.25947464]
[1756879234206,0.06314,110760.0,110750.0,0.25947464]
[1756879234404,0.59178756,110760.0,110750.0,0.25947464]
[1756879237208,0.06314,110760.0,110750.0,0.25947464]
[1756879237411,0.59178756,110760.0,110750.0,0.25947464]
[1756879238505,0.59178756,110760.0,110750.0,0.11947464]
[1756879240708,0.06314,110760.0,110750.0,0.11947464]
[1756879241016,0.59178756,110760.0,110750.0,0.11947464]
[1756879246408,0.06314,110760.0,110750.0,0.11947464]
[1756879246610,0.59178756,110760.0,110750.0,0.11947464]
[1756879248307,0.59178756,110760.0,110750.0,0.08421464]
[1756879248615,0.59178756,110760.0,110750.0,0.11933464]
[1756879249019,0.59178756,110760.0,110750.0,0.08421464]
[1756879250219,0.61511756,110760.0,110750.0,0.08421464]
[1756879251116,0.61511756,110760.0,110750.0,0.11933464]
[1756879254418,0.61511756,110760.0,110750.0,0.08421464]
[1756879256021,0.61511756,110760.0,110750.0,0.11933464]
[1756879257518,0.61511756,110760.0,110750.0,0.04710464]
[1756879257716,0.61511756,110760.0,110750.0,0.08546464]
[1756879259426,0.43885582,110760.0,110750.0,0.08546464]
[1756879260222,0.43885582,110760.0,110750.0,0.12058464]
[1756879262519,0.41552582,110760.0,110750.0,0.12058464]
[1756879262721,0.43888876,110760.0,110750.0,0.12058464]
[1756879265129,0.08650294,110760.0,110750.0,0.12058464]
[1756879265330,0.43888876,110760.0,110750.0,0.12058464]
[1756879266527,0.43888876,110760.0,110750.0,0.08546464]
[1756879266827,0.43888876,110760.0,110750.0,0.12058464]
[1756879273043,0.43888876,110760.0,110750.0,0.10221]
[1756879275746,0.04032,110750.0,110740.0,0.0002]
[1756879275951,0.4160725,110750.0,110740.0,0.42596]
[1756879276146,0.4160725,110750.0,110740.0,0.38]
[1756879276338,0.4160725,110750.0,110740.0,0.1628]
[1756879276745,0.7460725,110750.0,110740.0,0.14]
[1756879277150,0.4160725,110750.0,110740.0,0.14]
[1756879277350,0.7870725,110750.0,110740.0,0.14]
[1756879277645,0.79593019,110750.0,110740.0,0.14]
[1756879278047,0.77593019,110750.0,110740.0,0.14]
[1756879278245,0.00489,110740.0,110700.0,0.09512424]
[1756879278441,0.02053,110730.0,110720.0,0.04596]
[1756879278741,0.02053,110720.0,110710.0,0.08156]
[1756879278943,0.37291582,110720.0,110710.0,0.41156]
[1756879279343,0.02053,110720.0,110710.0,0.41156]
[1756879279544,0.37291582,110720.0,110710.0,0.41156]
[1756879279749,0.02053,110720.0,110710.0,0.41156]
[1756879279949,0.37291582,110720.0,110710.0,0.41156]
[1756879280258,0.02053,110720.0,110710.0,0.41156]
[1756879280446,0.37291582,110720.0,110710.0,0.41156]
[1756879280644,0.02053,110720.0,110710.0,0.41156]
[1756879280848,0.37291582,110720.0,110710.0,0.41156]
[1756879281046,0.37291582,110720.0,110710.0,0.41556]
[1756879281446,0.02053,110720.0,110710.0,0.41556]
[1756879281645,0.02053,110720.0,110710.0,0.41356]
[1756879281949,0.36519582,110730.0,110720.0,0.0356]
[1756879282155,0.37291582,110730.0,110720.0,0.08156]
[1756879282353,0.02053,110730.0,110720.0,0.08156]
[1756879282556,0.35248582,110740.0,110730.0,0.08156]
[1756879282557,0.37301582,110740.0,110730.0,0.08156]
[1756879282848,0.02053,110740.0,110730.0,0.08156]
[1756879283046,0.01564,110740.0,110730.0,0.68394582]
[1756879283253,0.02063,110750.0,110740.0,0.08156]
[1756879283447,0.37291582,110750.0,110740.0,0.08156]
[1756879285041,0.75291582,110750.0,110740.0,0.0228]
[1756879285246,0.02153,110740.0,110730.0,0.08156]
[1756879285550,0.36902582,110740.0,110730.0,0.08156]
[1756879285751,0.37391582,110740.0,110730.0,0.08156]
[1756879286252,0.37291582,110740.0,110730.0,0.08156]
[1756879287052,0.37391582,110740.0,110730.0,0.08156]
[1756879287554,0.36902582,110740.0,110730.0,0.08156]
[1756879287955,0.001,110740.0,110730.0,0.08156]
[1756879288153,0.36120582,110740.0,110730.0,0.08156]
[1756879288353,0.36902582,110740.0,110730.0,0.08156]
[1756879288557,0.00882,110740.0,110730.0,0.08156]
[1756879288949,0.00982,110740.0,110730.0,0.08156]
[1756879289244,0.002,110740.0,110730.0,0.43394582]
[1756879291356,0.002,110740.0,110730.0,0.08156]
[1756879291858,0.37491582,110740.0,110730.0,0.08156]
[1756879294455,0.74491582,110740.0,110720.0,0.05411509]
[1756879294658,0.37291582,110730.0,110720.0,0.27007509]
[1756879296261,0.37291582,110730.0,110720.0,0.25156]
[1756879296565,0.37291582,110730.0,110720.0,0.25256]
[1756879296861,0.02053,110730.0,110720.0,0.25356]
[1756879297164,0.37291582,110730.0,110720.0,0.25356]
[1756879297755,0.75291582,110730.0,110720.0,0.25256]
[1756879297959,0.75291582,110730.0,110720.0,0.25356]
[1756879298260,0.37291582,110730.0,110720.0,0.25356]
[1756879298860,0.72530164,110730.0,110720.0,0.16711]
[1756879299066,0.27053,110730.0,110720.0,0.002]
[1756879299257,1.32894139,110730.0,110720.0,0.002]
[1756879299557,1.32894139,110730.0,110710.0,0.0001]
[1756879299759,0.95477164,110720.0,110710.0,0.0001]
[1756879299957,1.31841139,110720.0,110700.0,0.06259]
[1756879300157,0.27373975,110720.0,110700.0,0.01467]
[1756879300353,0.35238582,110710.0,110700.0,0.01467]
[1756879300557,0.71602557,110710.0,110700.0,0.01457]
[1756879300854,0.71502557,110710.0,110700.0,0.09939]
[1756879301056,0.71602557,110710.0,110700.0,0.09939]
[1756879301262,0.71502557,110710.0,110700.0,0.09939]
[1756879301461,0.72417047,110710.0,110700.0,0.09939]
[1756879301762,0.68502557,110710.0,110700.0,0.10139]
[1756879302160,0.02263975,110710.0,110700.0,0.10139]
[1756879302356,0.74502557,110710.0,110700.0,0.10139]
[1756879302557,0.73502557,110710.0,110700.0,0.06449]
[1756879302757,0.72502557,110710.0,110700.0,0.04133]
[1756879303155,0.37502557,110710.0,110700.0,0.01657]
[1756879303353,0.70502557,110710.0,110700.0,0.01757]
[1756879303554,0.70502557,110710.0,110690.0,0.037]
[1756879303555,0.60263975,110710.0,110690.0,0.0001]
[1756879303762,0.60263975,110710.0,110690.0,0.004]
[1756879303763,0.25,110700.0,110690.0,0.004]
[1756879304060,2.18001164,110700.0,110690.0,0.0039]
[1756879304359,2.18001164,110700.0,110680.0,0.00017272]
[1756879304562,0.70477164,110690.0,110680.0,0.00017272]
[1756879304764,1.06477164,110690.0,110680.0,7.272e-05]
[1756879304968,0.36238582,110690.0,110680.0,7.272e-05]
[1756879305155,1.01477164,110690.0,110680.0,7.272e-05]
[1756879305460,1.27477164,110690.0,110680.0,7.272e-05]
[1756879305866,0.73238582,110690.0,110680.0,0.04926272]
[1756879306069,0.69238582,110690.0,110680.0,0.08616272]
[1756879306266,0.35238582,110690.0,110680.0,0.08616272]
[1756879306467,0.42330834,110690.0,110680.0,0.08616272]
[1756879306762,0.002,110700.0,110690.0,0.08609]
[1756879306968,0.69438582,110700.0,110690.0,0.08609]
[1756879307171,0.35238582,110700.0,110680.0,0.00017272]
[1756879307464,0.35538582,110690.0,110680.0,0.08626272]
[1756879307671,0.67538582,110690.0,110680.0,0.08616272]
[1756879307861,0.67338582,110690.0,110680.0,0.08616272]
[1756879308168,0.67238582,110690.0,110680.0,0.08616272]
[1756879308564,0.002,110690.0,110680.0,0.08616272]
[1756879308765,0.002,110690.0,110680.0,0.33616272]
[1756879308966,0.35438582,110690.0,110680.0,0.33616272]
[1756879309266,0.002,110690.0,110680.0,0.33616272]
[1756879309672,0.35438582,110690.0,110680.0,0.33616272]